[Event "Mongolian Championship Open 2022"]
[Site "Chingis Khentii"]
[Date "2022.05.15"]
[Round "1.1"]
[White "Boldoo, Erdenepurev"]
[Black "Batchuluun, Tsegmed"]
[Result "0-1"]
[ECO "E52"]
[WhiteElo "2371"]
[BlackElo "2536"]
[Annotator "TA"]
[PlyCount "42"]
[EventDate "2022.05.12"]
[EventType "tourn"]
[EventCountry "MGL"]
[SourceTitle "playchess.com"]
[Source "ChessBase"]
[SourceQuality "1"]
[TimeControl "40/5400+30:1800+30"]

{[%evp 18,42,0,0,8,-10,-9,-23,-16,-11,-12,-1,-25,-18,-14,-63,-64,-62,-39,-82,-88,-133,466,472,512,505,480]} 1. d4 {[%emt 1:31:00]} Nf6 {[%emt 1:31:00]} 2. c4 {[%emt 0:00:30]} e6 {[%emt 0:00:30]} 3. Nc3 {[%emt 0:00:30]} Bb4 4. e3 {[%emt 0:00:30]} b6 5. Bd2 {[%emt 0:00:30]} Bb7 {[%emt 0:01:30]} 6. Nf3 {[%emt 0:00:30]} O-O {[%emt 0:00:30]} 7. Rc1 d5 {[%emt 0:00:30]} 8. cxd5 {[%emt 0:01:00]} exd5 {[%emt 0:00:30]} 9. Bd3 {[%emt 0:00:30]} Nbd7 {[%emt 0:00:30]} 10. O-O {[%emt 0:00:30]} a6 {E52: Nimzo-Indian: Rubinstein: 4...0-0 5 Nf3 d5 6 Bd3 b6.} 11. a4 {[%emt 0:00:30] [#]} Re8 $146 ({Predecessor:} 11... Qe7 12. Na2 Bd6 13. a5 Ne4 14. axb6 cxb6 15. Qb3 b5 16. Ba5 Rfc8 17. h3 h5 18. Bb4 {1-0 (50) Kovalenko,I (2644)-Gukesh,D (2578) Riga 2021}) 12. Na2 {[%emt 0:00:30]} Bd6 {Black has an edge.} 13. a5 {[%emt 0:00:30]} c5 {[%emt 0:02:00][%cal Bc7c5,Bc5c4][%mdl 32]} 14. axb6 {[%emt 0:00:30]} c4 {[%emt 0:00:30]} 15. Bc2 {[%emt 0:00:30][%cal Bd3c2,Bc2e4,Be4d5][%mdl 32]} a5 {[%emt 0:00:30]} 16. b3 {[%emt 0:00:30]} (16. Nc3 $11) 16... Nxb6 $15 {[%emt 0:00:30]} 17. Nc3 {[%emt 0:00:30]} Ne4 {[%emt 0:00:30] Black is more active.} 18. bxc4 {[%emt 0:00:30]} Nxc4 {[%emt 0:00:30]} 19. Bxe4 {[%emt 0:00:30]} Re6 $2 {[%emt 0:00:30][%mdl 8192] [#]} (19... dxe4 $17 20. Nxe4 Nxe3 21. fxe3 Bxe4) 20. Bxd5 $18 {[%emt 0:00:30]} Nxd2 {[%emt 0:00:30]} 21. Nxd2 {[%emt 0:00:30]} Bxh2+ {[%emt 0:00:30][%mdl 32768] Weighted Error Value: White=0.14 (very precise) /Black=0.58. Loss on time!?} 0-1

[Event "Mongolian Championship Open 2022"]
[Site "Chingis Khentii"]
[Date "2022.05.15"]
[Round "1.2"]
[White "Gundavaa, Bayarsaikhan"]
[Black "Battulga, Namkhai"]
[Result "1-0"]
[ECO "C42"]
[WhiteElo "2495"]
[BlackElo "2402"]
[Annotator "TA"]
[PlyCount "117"]
[EventDate "2022.05.12"]
[EventType "tourn"]
[EventCountry "MGL"]
[SourceTitle "playchess.com"]
[Source "ChessBase"]
[SourceQuality "1"]
[TimeControl "40/5400+30:1800+30"]

{[%evp 18,117,35,35,36,29,34,37,55,45,47,49,61,43,49,37,43,19,14,8,25,11,50,49,50,50,41,40,37,23,37,39,43,14,9,0,0,0,14,14,14,14,122,14,95,0,0,0,13,12,12,12,70,25,141,141,149,106,106,106,142,125,192,187,272,204,446,447,439,433,431,421,393,391,354,288,283,263,387,367,1176,1102,1787,1721,1587,1575,1146,1090,29973,29974,29974,29975,29975,29976,29975,29976,29981,29982,29983,29984,29983,29984]} 1. e4 {[%emt 1:31:00]} e5 2. Nf3 Nf6 {[%cal Bg8f6,Bf6e4,Be4d2][%mdl 32]} 3. Nxe5 {[%emt 0:01:00]} d6 4. Nf3 {[%emt 0:00:30]} Nxe4 {[%emt 1:32:30]} 5. d4 {[%emt 0:00:30]} d5 {[%emt 0:00:30]} 6. Bd3 Be7 {[%emt 0:00:30]} 7. O-O {[%emt 0:01:00]} Nc6 8. Nbd2 {[%emt 0:00:30]} Nxd2 {[%emt 0:01:00]} 9. Bxd2 {[%emt 0:00:30]} Bg4 10. c3 O-O {[%emt 0:01:00] C42: Petroff Defence: 3 Nxe5 and unusual White 3rd moves.} 11. h3 Bh5 {[%emt 0:00:30]} 12. g3 Bd6 {White is slightly better.} 13. Kg2 {[%emt 0:02:00] [#]} Rb8 $146 ({Predecessor:} 13... h6 14. Qc2 Ne7 15. Nh4 f5 16. f4 Qd7 17. Rae1 Rae8 18. Nf3 b6 19. Ne5 Bxe5 20. fxe5 {1-0 (73) Lebedev,V (2472)-Varlamov,F (2273) ICCF email 2014}) 14. Qc2 {[%emt 0:00:30]} Bg6 {[%emt 0:01:30]} 15. Bxg6 {[%emt 0:00:30]} fxg6 {[%emt 0:00:30]} 16. Rae1 {[%emt 0:00:30]} Qf6 {[%emt 0:00:30]} 17. Ng5 {[%emt 0:00:30] Black should prevent Qb3.} h6 {[%emt 0:00:30]} 18. Ne6 Rf7 {[%emt 0:00:30]} 19. Qd3 {[%emt 0:01:00] Active counter play!} (19. Bf4 $5) 19... Re8 (19... Re7 $5 {[%cal Re7e6]} 20. Nf4 Bxf4 21. Bxf4 g5 22. Rxe7 Qxe7 $11) 20. Nf4 {[%emt 0:00:30]} Rxe1 {[%emt 0:01:00]} 21. Rxe1 {[%emt 0:00:30]} Bxf4 22. Bxf4 {[%emt 0:00:30]} Ne7 23. Qe2 {[%emt 0:00:30]} c6 {[%emt 0:01:30]} 24. Be5 Qe6 {[%emt 0:00:30]} 25. g4 g5 {[%emt 0:00:30]} 26. Qd3 {[%emt 0:01:30]} Ng6 {[%emt 0:00:30][%cal Oe6e5] ...Qxe5! is the strong threat.} 27. Re3 Nxe5 {[%emt 0:00:30]} 28. Rxe5 $11 {[%emt 0:01:00][%mdl 4096] Endgame KQR-KQR} Qf6 {[%emt 0:00:30]} 29. Qe3 {[%emt 0:00:30]} Rf8 {[#]} (29... Qg6 $11) 30. b3 {[%emt 0:00:30]} (30. Re6 $1 $16 {[%cal Re6f6]} Qf4 31. Re7) 30... Qf4 {[%emt 0:01:00]} (30... Qg6 $11) 31. c4 {[%emt 0:00:30]} (31. Re7 $16) 31... dxc4 {[%emt 0:00:30]} 32. bxc4 {[%emt 0:00:30]} Qf7 {[%emt 0:00:30]} 33. d5 {[%emt 0:00:30]} cxd5 {[%emt 0:00:30]} 34. cxd5 {[%emt 0:00:30]} Rd8 {[%emt 0:00:30]} (34... Qc7 $11) 35. Rf5 {[%emt 0:00:30]} Qd7 (35... Qe8 $11) 36. Qxa7 $16 {[%emt 0:00:30]} Re8 {[%emt 0:01:00]} 37. Qd4 {[%emt 0:00:30]} Qd6 38. Rf3 {[%emt 0:00:30]} Re5 {[%emt 0:01:00] [#]} 39. Rd3 $1 {[%emt 0:00:30]} b5 {[%emt 0:00:30]} (39... b6 $16 40. a4 Kf7) 40. a3 {[%emt 0:00:30]} Re2 {[%emt 0:00:30]} (40... Re8 {keeps fighting.} 41. Rc3 Qe5) 41. Rc3 {[%emt 0:30:30]} Qf4 $2 (41... Qe5 {was necessary.} 42. Qxe5 Rxe5) 42. Qxf4 $18 gxf4 {KR-KR} 43. Rd3 {[%emt 0:01:00] Prevents Rd2.} Kf7 44. Kf3 {[%emt 0:00:30][%csl LRe2,LRf4]} Rc2 45. Kxf4 {[%emt 0:00:30]} (45. d6 Ke8 46. Kxf4 Rxf2+ 47. Ke5 Re2+ 48. Kf5 g5 $18) 45... Rxf2+ 46. Ke3 {[%emt 0:00:30]} Rc2 47. Kd4 {[%emt 0:00:30]} Rc4+ {[%emt 0:33:30]} (47... Ke7 $142 48. Re3+ Kd7) 48. Ke5 b4 $2 {[%emt 0:00:30]} (48... Ke7 49. Rb3 Rc5) 49. axb4 Rxb4 50. d6 {[%emt 0:01:30][%cal Bd5d6,Bd6d7][%mdl 32] d7 would kill now.} Ke8 51. Kf5 {[%emt 0:00:30]} Rb5+ {[%emt 0:01:30]} 52. Ke6 {[%emt 0:00:30] Intending Rc3 and mate.} Rg5 {[%emt 0:00:30]} 53. d7+ {[%emt 0:00:30] White mates.} Kd8 54. Kf7 {[%emt 0:00:30]} h5 55. Rd4 {[%emt 0:00:30]} Re5 56. Kxg7 {[%emt 0:00:30]} h4 {[%emt 0:02:00]} 57. Rd3 Re1 58. g5 {[%emt 0:01:00][%cal Bg4g5,Bg5g6][%mdl 32]} Rg1 59. g6 {[%emt 0:00:30] Weighted Error Value: White=0.12 (very precise) /Black=0.43} 1-0

[Event "Mongolian Championship Open 2022"]
[Site "Chingis Khentii"]
[Date "2022.05.15"]
[Round "1.3"]
[White "Gan-Erdene, Sugar"]
[Black "Batsuren, Dambasuren"]
[Result "1/2-1/2"]
[ECO "E11"]
[WhiteElo "2419"]
[BlackElo "2501"]
[Annotator "TA"]
[PlyCount "60"]
[EventDate "2022.05.12"]
[EventType "tourn"]
[EventCountry "MGL"]
[SourceTitle "playchess.com"]
[Source "ChessBase"]
[SourceQuality "1"]
[TimeControl "40/5400+30:1800+30"]

{[%evp 12,60,0,16,27,28,31,4,9,12,11,19,20,0,0,0,0,0,0,0,0,-8,6,0,0,0,0,-4,0,0,0,0,0,0,0,0,0,0,0,0,0,0,0,0,0,0,0,0,0,0,0]} 1. d4 {[%emt 1:31:00]} Nf6 2. c4 {[%emt 0:00:30]} e6 3. g3 {[%emt 0:00:30]} d5 {[%emt 1:32:00]} 4. Nf3 {[%emt 0:00:30]} Bb4+ {[%emt 0:00:30]} 5. Bd2 {[%emt 0:00:30]} a5 6. Qc2 {[%emt 0:00:30]} O-O {[%emt 0:01:00]} 7. Bg2 {[%emt 0:00:30]} c5 {E11: Bogo-Indian.} 8. cxd5 {[%emt 0:00:30] 8.cxd5 scores better than 8.dxc5.} cxd4 {[%emt 0:01:00]} 9. Bxb4 {[%emt 0:00:30]} axb4 {[%emt 0:00:30] The position is equal.} 10. Nxd4 {[%emt 0:00:30]} Qb6 {[%emt 0:00:30]} 11. e3 {[%emt 0:00:30]} exd5 {[%emt 0:00:30]} 12. O-O {[%emt 0:00:30]} Nc6 {[%emt 0:00:30]} 13. Nxc6 {[%emt 0:00:30]} bxc6 {[%emt 0:00:30]} 14. Nd2 {[%emt 0:00:30] [#]} Be6 $146 {[%emt 0:00:30]} ({Predecessor:} 14... Bd7 15. Nb3 Rfb8 16. Rfc1 h5 17. Nc5 Be8 18. a4 bxa3 19. bxa3 Ra5 20. Bh3 Qa7 {0-1 (39) Hossain,E (2426)-Sunilduth Lyna,N (2618) Dhaka 2021}) 15. Nb3 {[%emt 0:00:30]} Rfc8 {[%emt 0:00:30]} 16. Nc5 {[%emt 0:00:30]} Bf5 {[%emt 0:00:30]} 17. Qxf5 {[%emt 0:00:30]} Qxc5 {[%emt 0:00:30]} 18. Rfc1 {[%emt 0:00:30]} Qd6 19. Rd1 {[%emt 0:00:30]} g6 {[%emt 0:01:00]} 20. Qc2 {[%emt 0:00:30]} Qe7 {[%emt 0:00:30]} 21. a3 {[%emt 0:00:30]} bxa3 {[%emt 0:00:30]} 22. Rxa3 {[%emt 0:00:30]} Rxa3 {[%emt 0:00:30]} 23. bxa3 {[%emt 0:00:30]} Qxa3 {[%emt 0:00:30]} 24. Bxd5 $1 {[%emt 0:00:30]} Nxd5 {[%emt 0:00:30]} 25. Rxd5 {[%emt 0:00:30]} cxd5 {[%emt 0:00:30]} 26. Qxc8+ $11 {[%emt 0:00:30] KQ-KQ} Kg7 {[%emt 0:00:30]} 27. Qc7 {[%emt 0:00:30]} Qd3 28. Qe5+ {[%emt 0:00:30]} Kg8 {[%emt 0:01:00]} 29. Qe8+ {[%emt 0:00:30]} Kg7 30. Qe5+ {[%emt 0:00:30]} Kg8 {An even fight not without its subleties.  Weighted Error Value: White=0.03 (flawless) /Black=0.02 (flawless)} 1/2-1/2

[Event "Mongolian Championship Open 2022"]
[Site "Chingis Khentii"]
[Date "2022.05.15"]
[Round "1.4"]
[White "Amartuvshin, Ganzorig"]
[Black "Bilguun, Sumiya"]
[Result "0-1"]
[ECO "D36"]
[WhiteElo "2350"]
[BlackElo "2454"]
[Annotator "TA"]
[PlyCount "164"]
[EventDate "2022.05.12"]
[EventType "tourn"]
[EventCountry "MGL"]
[SourceTitle "playchess.com"]
[Source "ChessBase"]
[SourceQuality "1"]
[TimeControl "40/5400+30:1800+30"]

{[%evp 26,164,20,15,25,17,24,17,25,15,18,0,0,0,0,0,0,-4,0,-20,-18,-50,-41,-41,0,0,0,0,0,0,0,0,0,-10,-12,-13,-12,-8,0,-6,0,0,0,-14,-5,-49,-42,-39,-23,-20,-16,-14,-37,-22,-31,-67,0,-42,-32,-77,0,0,0,0,0,0,0,-5,-14,-30,-13,-94,-84,-214,-217,-383,-370,-514,-264,-269,-264,-258,-262,-254,-257,-231,-263,-254,-256,-337,-219,-343,-336,-422,-462,-649,-592,-761,-792,-823,-775,-1218,-1211,-987,-529,-1522,-1386,-1740,-329,-782,0,-1417,-852,-589,-927,-904,0,0,0,0,0,-2252,-1852,-12837,-12837,-12835,-919,-12844,-12844,-12845,-12845,-12845,-12846,-12846,-12847,-12847,-12847,-12848,-12848,-12849,-12849]} 1. d4 {[%emt 1:31:00]} d5 {[%emt 1:31:00]} 2. c4 {[%emt 0:00:30]} e6 {[%emt 0:00:30]} 3. Nf3 {[%emt 0:00:30]} c6 {[%emt 0:00:30]} 4. Bg5 Be7 {[%emt 0:00:30]} 5. Bxe7 Qxe7 6. e3 {[%emt 0:01:30]} Nf6 {[%emt 0:01:00]} 7. Nc3 {[%emt 0:00:30]} Nbd7 {[%emt 0:00:30]} 8. cxd5 {[%emt 0:00:30]} exd5 {[%emt 0:00:30]} 9. Qc2 {[%emt 0:00:30]} O-O {[%emt 0:00:30]} 10. Bd3 Re8 {[%emt 0:00:30]} 11. O-O {[%emt 0:01:00]} Nf8 {[%emt 0:00:30][%cal Bd7f8,Bf8e6,Be6c5,Bc5e4][%mdl 32]} 12. Ne5 {[%emt 0:00:30]} Ng4 {[%emt 0:00:30]} 13. Nxg4 {[%emt 0:00:30]} Bxg4 {[%emt 0:00:30]} 14. Rab1 {[%emt 0:00:30]} Rad8 {[%emt 0:00:30] [#] D36: Queen's Gambit Declined: Exchange Variation: Main line (5 Bg5 c6 6 Qc2).} 15. Ne2 $146 {[%emt 0:00:30]} ({Predecessor:} 15. b4 a6 16. Na4 Rd6 17. Bf5 Bxf5 18. Qxf5 Ng6 19. Nc5 Nh4 20. Qe5 Rg6 21. Qxe7 Rxe7 22. Kh1 Rxg2 {0-1 (56) Khalid,A (2197)-Ghane Gardeh,S (2423) Abu Dhabi 2002}) 15... Bxe2 {[%emt 0:00:30]} 16. Qxe2 {[%emt 0:00:30]} Ne6 {[%emt 0:00:30][%cal Oe6d4] The position is equal.} 17. Qg4 {[%emt 0:00:30]} g6 {[%emt 0:00:30]} 18. h4 {[%emt 0:00:30]} h5 {[%emt 0:00:30]} 19. Qg3 {[%emt 0:00:30]} c5 {[%emt 0:00:30]} 20. dxc5 {[%emt 0:00:30]} Nxc5 {[%emt 0:00:30]} 21. Bb5 {[%emt 0:00:30]} Rf8 {[%emt 0:00:30]} 22. Rfd1 {[%emt 0:00:30]} Ne4 {[%emt 0:00:30]} 23. Qf4 {[%emt 0:00:30]} Rd6 $1 {[%emt 0:00:30] Strongly threatening ...Rf6.} 24. f3 {[%emt 0:00:30]} Nc5 {[%emt 0:00:30]} (24... Rf6 {is interesting.} 25. Qh6 Rb6 26. fxe4 Rxb5 27. exd5 Rb4) 25. Qg5 {[%emt 0:00:30]} Qxg5 {[%emt 0:00:30]} 26. hxg5 {[%emt 0:00:30]} Ne6 {[%emt 0:00:30]} 27. Rd2 {[%emt 0:00:30]} Nxg5 {[%emt 0:00:30]} 28. Rbd1 {[%emt 0:00:30]} Ne6 {[%emt 0:00:30]} 29. Bc4 {[%emt 0:00:30]} d4 {[%emt 0:00:30]} 30. exd4 {[%emt 0:00:30]} Rc8 {[%emt 0:00:30]} 31. Bb3 {[%emt 0:00:30]} h4 {[%emt 0:00:30]} 32. Kf2 {[%emt 0:00:30]} Nf4 {[%emt 0:00:30]} 33. Re1 {[%emt 0:00:30]} Kf8 {[%emt 0:00:30] Inhibits Re7.} 34. Re4 {[%emt 0:00:30]} g5 {[%emt 0:00:30]} 35. d5 Rc1 {[%emt 0:00:30]} 36. Re5 {[%emt 0:01:00]} f6 37. Re3 b5 38. Rc3 {[%emt 0:01:00]} Rxc3 {[%emt 0:01:30]} 39. bxc3 $11 {[%emt 0:00:30][%mdl 4096] Endgame KRB-KRN} Ke7 {[%emt 0:00:30]} 40. Ke3 {[%emt 0:00:30]} Ra6 {[%emt 0:00:30] Black is more active.} (40... a5 $15 41. a3 Rd8) 41. Kd4 {[%emt 0:30:30]} ({Much weaker is} 41. c4 bxc4 42. Bxc4 Rb6 $17) 41... Kd6 {[%emt 0:30:30]} 42. Ke4 {[%emt 0:00:30]} Kc5 {[%emt 0:00:30]} (42... Rb6 $1 $17) 43. Rc2 $1 {[%emt 0:00:30]} Rd6 {[%emt 0:00:30][%cal Rf4d5]} 44. c4 {[%emt 0:00:30]} b4 45. Kf5 {[%emt 0:00:30]} a5 46. Kg4 {[%emt 0:00:30]} Ng6 {[%emt 0:01:30]} 47. Kf5 {[%emt 0:00:30]} Ne7+ {[%emt 0:00:30]} 48. Ke4 {[%emt 0:00:30]} (48. Kg4 $1 $11 {keeps the balance.}) 48... Nc8 $17 {[%emt 0:00:30]} 49. Kd3 {[%emt 0:00:30]} (49. Rc1 $17) 49... Nb6 $19 50. a3 $2 {[%emt 0:00:30]} (50. Re2 a4 51. Re8) 50... bxa3 {[%emt 0:01:00]} 51. Re2 {[%emt 0:00:30]} Nd7 {[%emt 0:00:30]} 52. Kc3 {[%emt 0:00:30]} Ne5 53. Ra2 {[%emt 0:00:30]} a4 $1 {[%emt 0:01:00]} 54. Bxa4 Nxc4 {[%emt 0:00:30]} 55. Bb3 {[%emt 0:01:00]} Ne3 {[%emt 0:00:30]} 56. Rxa3 {[%emt 0:00:30]} Nxg2 {[%emt 0:00:30] Hoping for ...Rb6.} ({Inferior is} 56... Nxd5+ 57. Bxd5 Kxd5 58. Kd3 $17) 57. Ra5+ {[%emt 0:00:30]} Kb6 {[%emt 0:00:30]} 58. Ra8 {[%emt 0:00:30]} (58. Ra1 $142) 58... Ne1 {[%emt 0:00:30]} 59. f4 {[%emt 0:00:30]} g4 {[%emt 0:00:30]} 60. Rb8+ (60. Re8 $142 Ng2 61. Bd1) 60... Kc7 {[%emt 0:00:30]} 61. Rh8 {[%emt 0:01:00]} h3 62. Kc4 {[%emt 0:00:30]} Rd7 {Threatens to win with ...Rg7.} 63. Ba4 {[%emt 0:00:30]} Rg7 {[%emt 0:01:30]} 64. Bb5 Kb6 {...g3 is the strong threat.} 65. d6 {[%emt 0:01:00] aiming for d7.} g3 {White must now prevent ...g2.} 66. Rb8+ {[%emt 0:00:30]} Rb7 $2 (66... Ka7 67. Re8 h2) 67. Ra8 {[%emt 0:00:30][%csl Gb5][%cal Ra8a6]} Rg7 (67... Rh7 $142 68. Rb8+ Rb7) 68. Rb8+ $1 {[%emt 0:00:30]} Ka7 $1 69. Re8 {[%emt 0:00:30] [#]} h2 $1 {[%emt 0:03:00]} 70. Bc6 {[%emt 0:00:30] [#]} Kb6 $2 71. Bd5 $11 {[%emt 0:00:30]} g2 72. Rb8+ {[%emt 0:00:30]} Ka6 {[%emt 0:01:30]} 73. Ra8+ $2 {[%mdl 8192]} (73. Rb2 $11) 73... Ra7 $19 {Black is clearly winning.} ({Worse is} 73... Kb6 74. Rb8+ Ka7 75. Ra8+ Kb6 76. Rb8+ $11) 74. Bxg2 {[%emt 0:01:00]} Nxg2 {[%emt 0:01:00] KRN-KR} 75. Rh8 {[%emt 0:00:30]} Kb6 {[%emt 0:00:30]} 76. Kd5 {[%emt 0:00:30]} Nxf4+ {[%emt 0:00:30]} 77. Ke4 {[%emt 0:00:30]} Ra4+ {[%emt 0:00:30]} 78. Kf5 {[%emt 0:00:30]} Kc6 {[%emt 0:00:30]} 79. Kxf6 {[%emt 0:00:30]} Ra2 80. Rh6 {[%emt 0:00:30]} Rf2 {[%emt 0:01:00]} 81. Ke7 {[%emt 0:00:30]} Nd5+ {[%emt 0:00:30]} 82. Ke8 {[%emt 0:00:30]} Nf6+ {[%emt 0:00:30] Weighted Error Value: White=0.27 (precise) /Black=0.10 (very precise)} 0-1

[Event "Mongolian Championship Open 2022"]
[Site "Chingis Khentii"]
[Date "2022.05.15"]
[Round "1.5"]
[White "Enkhnar, Enkhbaatar"]
[Black "Agibileg, Uurtsaikh"]
[Result "1-0"]
[ECO "B44"]
[WhiteElo "2368"]
[BlackElo "2440"]
[Annotator "TA"]
[PlyCount "99"]
[EventDate "2022.05.12"]
[EventType "tourn"]
[EventCountry "MGL"]
[SourceTitle "playchess.com"]
[Source "ChessBase"]
[SourceQuality "1"]
[TimeControl "40/5400+30:1800+30"]

{[%evp 16,99,16,2,27,19,21,26,43,25,39,27,17,22,23,0,21,16,78,31,79,74,82,41,104,90,76,91,170,175,427,408,418,405,648,653,610,596,575,632,614,582,634,632,763,698,654,0,720,580,526,0,636,640,593,553,645,647,647,645,614,583,533,615,762,748,875,854,1795,1852,1793,1652,1763,1720,1762,1602,1388,1258,654,1529,1383,1333,29979,29977,29976,29975]} 1. e4 {[%emt 1:31:00]} c5 {[%emt 1:31:00]} 2. Nf3 {[%emt 0:00:30]} e6 {[%emt 0:00:30]} 3. d4 {[%emt 0:00:30]} cxd4 {[%emt 0:00:30]} 4. Nxd4 {[%emt 0:00:30]} Nc6 {[%emt 0:00:30]} 5. c4 {[%emt 0:00:30]} Nf6 {[%emt 0:00:30]} 6. Nc3 {[%emt 0:00:30]} Bb4 7. Nxc6 {[%emt 0:00:30]} bxc6 {[%emt 0:01:00]} 8. Bd3 {[%emt 0:00:30]} e5 9. O-O {[%emt 0:00:30]} Bc5 {[%emt 0:01:00] B44: Sicilian: Taimanov: 5 Nb5.} 10. Qe2 {[%emt 0:00:30] 10.Re1 might become the main line.} d6 11. Be3 {[%emt 0:00:30]} Nd7 {[%emt 0:01:00] White has an edge.} 12. Rad1 {[%emt 0:00:30] [#]} (12. Na4 $5 {[%cal Ra4c5]}) 12... Bd4 $146 {[%emt 0:00:30]} ({Predecessor:} 12... O-O 13. Bc2 Rb8 14. b3 Qf6 15. Na4 Bd4 16. Qd2 c5 17. Nc3 Bb7 18. Ne2 Rfe8 {0-1 (73) Haghayegh,J (2054)-Harutjunyan,G (2468) Esfahan 2011}) 13. Bb1 {[%emt 0:00:30]} c5 14. f4 {[%emt 0:00:30][%cal Bf2f4,Bf4f5][%mdl 32]} O-O {[%emt 0:01:00]} 15. Kh1 {[%emt 0:00:30]} Bb7 {[%emt 0:00:30]} 16. f5 {[%emt 0:00:30]} f6 {[%emt 0:00:30]} (16... Bxc3 $11 {keeps the balance.} 17. bxc3 Qe7) 17. Rf3 {White is more active.} ({White should try} 17. Rd3 $16) 17... Rf7 (17... Bxc3 $14 18. bxc3 Qc7) 18. Bc1 $16 {[%emt 0:01:00]} Bc6 {[%emt 0:01:00]} 19. g4 {[%emt 0:00:30]} g5 {[%emt 0:00:30] White stays focused until the end.} (19... a5 $14) 20. fxg6 {[%emt 0:00:30]} hxg6 {[%emt 0:00:30]} 21. Nd5 {[%emt 0:00:30] Against Qe7} Rh7 {[%emt 0:00:30] [#]} (21... Bxd5 $16 22. exd5 e4 23. Qxe4 (23. Bxe4 Ne5 $16) 23... Ne5) 22. Rdf1 $1 $18 {[%emt 0:00:30]} Kg7 {[%emt 0:00:30]} (22... Bxd5 23. exd5 e4 24. Qxe4 Nf8) 23. g5 {[%emt 0:00:30][%cal Rg5f6]} Bxd5 {[%emt 0:00:30]} 24. gxf6+ {[%emt 0:00:30]} (24. cxd5 Kf7 25. Rg3 Qc7 $18) 24... Kf7 {[%emt 0:00:30]} (24... Nxf6 $142 25. Rxf6 (25. cxd5 Nh5 $14) (25. exd5 e4 $16) 25... Qxf6 26. Rxf6 Bxc4 27. Qxc4 Kxf6) 25. exd5 {[%emt 0:00:30][%cal Ob1g6] Threatening mate with Bxg6+!} Qh8 {[%emt 0:00:30] [#]} 26. Bxg6+ {[%emt 0:00:30][%mdl 512]} Kxg6 {[%emt 0:00:30]} 27. f7 {[%emt 0:00:30][%cal Rf3g3]} Kg7 {[%emt 0:00:30]} 28. f8=Q+ {[%emt 0:00:30]} Qxf8 {[%emt 0:00:30]} 29. Rxf8 {[%emt 0:00:30]} Nxf8 {[%emt 0:00:30]} 30. Qg4+ {[%emt 0:00:30]} Kh8 {[%emt 0:00:30]} 31. Qe2 {[%emt 0:00:30]} Kg7 $1 {[%emt 0:00:30]} 32. Qd1 {[%emt 0:00:30]} Nd7 {[%emt 0:00:30]} 33. Qe2 $2 {[%emt 0:00:30]} ({Better is} 33. Qg4+ $18 Kh8 34. Qe6) 33... Rf8 $2 {[%emt 0:00:30][%mdl 8192]} (33... Nf8 $11 34. Bg5 e4 35. Qxe4 Ng6) 34. Qg4+ {[%emt 0:00:30]} Kh8 35. Rxf8+ {[%emt 0:00:30]} Nxf8 {[%emt 0:01:00]} 36. Qc8 {[%emt 0:00:30][%cal Rc8f8]} Kg8 {[%emt 0:00:30]} 37. Bg5 e4 {[%emt 0:00:30]} 38. Qe8 {[%emt 0:01:00]} Rf7 {[%emt 0:00:30]} 39. Be7 {[%emt 0:00:30]} e3 40. Bxd6 {[%emt 0:00:30]} Kg7 {[%emt 0:01:00]} 41. Be5+ Kg6 {[%emt 0:30:30]} 42. Bxd4 {[%emt 0:31:00]} cxd4 {[%emt 0:00:30][%mdl 4096] Endgame KQ-KRN} 43. Qe4+ {[%emt 0:00:30]} Kh5 {[%emt 0:00:30]} 44. d6 Nd7 {[%emt 0:00:30]} 45. Qd5+ Kg6 {[%emt 0:00:30]} 46. Qxd4 {[%emt 0:01:30]} Rf1+ {[%emt 0:00:30]} 47. Kg2 {[%emt 0:00:30]} Rf2+ {[%emt 0:00:30]} 48. Kg1 {Intending Qg4+ and mate.} Rd2 49. Qg4+ {[%emt 0:01:00]} Kh6 {[%emt 0:01:00]} 50. Qxd7 {Weighted Error Value: White=0.40/Black=0.50} 1-0